bitfinex/quotes_BTCUSD_20250727
["timestamp","ask_amount","ask_price","bid_price","bid_amount"]
[1753660164645,2.73453547,119550.0,119540.0,0.03850501]
[1753660166558,2.48229372,119550.0,119540.0,0.03850501]
[1753660166797,2.73453547,119550.0,119540.0,0.03850501]
[1753660166992,2.73453547,119550.0,119540.0,0.01115501]
[1753660167633,1.51188647,119550.0,119540.0,0.01115501]
[1753660167844,2.73453547,119550.0,119540.0,0.01115501]
[1753660168698,1.51188647,119550.0,119540.0,0.03585501]
[1753660169127,2.73453547,119550.0,119540.0,0.03585501]
[1753660169327,2.48229372,119550.0,119540.0,0.01115501]
[1753660169541,2.73453547,119550.0,119540.0,0.01115501]
[1753660169747,1.51188647,119550.0,119540.0,0.01115501]
[1753660169955,2.73453547,119550.0,119540.0,0.01115501]
[1753660172307,2.73453547,119550.0,119540.0,0.03585501]
[1753660172521,2.71117547,119550.0,119540.0,0.03884501]
[1753660173173,2.73489547,119550.0,119540.0,0.03884501]
[1753660173789,1.51224647,119550.0,119540.0,0.03884501]
[1753660174004,2.73489547,119550.0,119540.0,0.03884501]
[1753660174836,2.48265372,119550.0,119540.0,0.03884501]
[1753660175062,2.58357547,119550.0,119540.0,0.03884501]
[1753660175288,2.45722372,119550.0,119540.0,0.32741676]
[1753660176124,2.32966372,119550.0,119540.0,0.49472477]
[1753660176327,2.45722372,119550.0,119540.0,0.32741676]
[1753660177020,2.45722372,119550.0,119540.0,0.07517501]
[1753660177227,2.45722372,119550.0,119540.0,0.32741676]
[1753660179415,1.23457472,119550.0,119540.0,0.32741676]
[1753660179590,2.45722372,119550.0,119540.0,0.32741676]
[1753660182934,2.45722372,119550.0,119540.0,0.07517501]
[1753660183209,2.45722372,119550.0,119540.0,0.32741676]
[1753660186445,2.45722372,119550.0,119540.0,0.74696652]
[1753660186884,2.44885923,119550.0,119540.0,0.74696652]
[1753660187082,2.32129923,119550.0,119540.0,0.49472477]
[1753660187291,2.4404946,119550.0,119540.0,0.32741676]
[1753660189456,2.4404946,119550.0,119540.0,0.49472477]
[1753660193393,1.2178456,119550.0,119540.0,0.49472477]
[1753660193649,2.4404946,119550.0,119540.0,0.49472477]
[1753660193963,1.2178456,119550.0,119540.0,0.49472477]
[1753660195443,1.05055159,119550.0,119540.0,0.49472477]
[1753660195652,1.0756452,119550.0,119540.0,0.80533192]
[1753660196089,1.4756452,119550.0,119540.0,0.80533192]
[1753660196709,1.4672805,119550.0,119540.0,0.80533192]
[1753660197008,1.65130314,119550.0,119540.0,0.79696652]
[1753660197369,1.65130314,119550.0,119540.0,0.54472477]
[1753660197570,1.65130314,119550.0,119540.0,0.79696652]
[1753660201148,1.642939,119550.0,119540.0,0.54472477]
[1753660202538,1.63457465,119550.0,119540.0,0.54472477]
[1753660204280,1.63457465,119550.0,119540.0,0.79696652]
[1753660205470,1.0589158,119550.0,119540.0,0.80533192]
[1753660205673,0.92299159,119550.0,119540.0,0.83042728]
[1753660206329,0.92199159,119550.0,119540.0,0.83042728]
[1753660206757,0.93035573,119550.0,119540.0,0.83042728]
[1753660206959,0.92199159,119550.0,119540.0,0.83042728]
[1753660207384,0.92099159,119550.0,119540.0,0.83042728]
[1753660207741,0.92935573,119550.0,119540.0,0.83042728]
[1753660208014,0.93772001,119550.0,119540.0,0.83042735]
[1753660208142,0.93772001,119550.0,119540.0,0.32694392]
[1753660208341,0.93772001,119550.0,119540.0,0.83342742]
[1753660208754,0.93772001,119550.0,119540.0,0.8417924]
[1753660208959,0.93772001,119550.0,119540.0,0.83342742]
[1753660209239,0.93772001,119550.0,119540.0,0.8417924]
[1753660209719,0.93772001,119550.0,119540.0,0.83342742]
[1753660209908,0.94608436,119550.0,119540.0,0.83342742]
[1753660210113,0.94608436,119550.0,119540.0,0.9693124]
[1753660210315,0.95444885,119550.0,119540.0,0.95258244]
[1753660210457,0.94608436,119550.0,119540.0,0.96094756]
[1753660211316,0.96281341,119550.0,119540.0,0.95258251]
[1753660211533,0.95444885,119550.0,119540.0,0.9609477]
[1753660212334,0.94608436,119550.0,119540.0,0.96931282]
[1753660212488,0.95444885,119550.0,119540.0,0.9609477]
[1753660213123,0.95444885,119550.0,119540.0,0.96931282]
[1753660213330,0.95444885,119550.0,119540.0,0.9609477]
[1753660213698,0.96281341,119550.0,119540.0,0.95258251]
[1753660213908,0.96281341,119550.0,119540.0,0.9609477]
[1753660214132,0.95444885,119550.0,119540.0,0.9609477]
[1753660215905,0.95444885,119550.0,119540.0,0.95258251]
[1753660216120,0.95444885,119550.0,119540.0,0.82506251]
[1753660216320,0.96281348,119550.0,119540.0,0.94421725]
[1753660216753,0.96281348,119550.0,119540.0,0.95258251]
[1753660216965,0.96281341,119550.0,119540.0,0.95258251]
[1753660217653,0.96281397,119550.0,119540.0,0.43973375]
[1753660217895,0.95444927,119550.0,119540.0,0.95258251]
[1753660218335,0.95444927,119550.0,119540.0,0.9609477]
[1753660218570,0.94608471,119550.0,119540.0,0.9609477]
[1753660218807,0.94608471,119550.0,119540.0,0.95258251]
[1753660219019,0.95444934,119550.0,119540.0,0.44809901]
[1753660219260,0.94608471,119550.0,119540.0,0.9609477]
[1753660219463,0.94608471,119550.0,119540.0,0.95258251]
[1753660220017,0.95444934,119550.0,119540.0,0.95258251]
[1753660220228,0.95444927,119550.0,119540.0,0.95258251]
[1753660220733,0.95444927,119550.0,119540.0,0.94421725]
[1753660220931,0.95444927,119550.0,119540.0,0.95258251]
[1753660221372,0.95444927,119550.0,119540.0,0.94421725]
[1753660221912,0.93772022,119550.0,119540.0,0.9609477]
[1753660222142,0.94608471,119550.0,119540.0,0.96931282]
[1753660222380,0.94608471,119550.0,119540.0,0.9609477]
[1753660223096,0.93772022,119550.0,119540.0,0.96931247]
[1753660223510,0.93771994,119550.0,119540.0,0.96931212]
[1753660223734,0.93771994,119550.0,119540.0,0.96094714]
[1753660223941,0.93771994,119550.0,119540.0,0.96931212]
[1753660224152,0.93771994,119550.0,119540.0,0.96931177]
[1753660224359,0.93771994,119550.0,119540.0,0.96094686]
[1753660224791,0.92099159,119550.0,119540.0,0.96931177]
[1753660225232,0.58099159,119550.0,119540.0,1.22155352]
[1753660225447,0.92099159,119550.0,119540.0,1.22155352]
[1753660227448,0.83651429,119550.0,119540.0,1.22155352]
[1753660228534,0.83651429,119550.0,119540.0,0.96931177]
[1753660229439,0.83651429,119550.0,119540.0,0.46482827]
[1753660229873,0.83651429,119550.0,119540.0,0.96931177]
[1753660231644,0.49651429,119550.0,119540.0,1.22155352]
[1753660234100,0.49651429,119550.0,119540.0,0.96931177]
[1753660234761,0.49651429,119550.0,119540.0,1.22155352]
[1753660234981,0.49651429,119550.0,119540.0,0.96931177]
[1753660235206,0.49651429,119550.0,119540.0,1.22155352]
[1753660235427,0.49651429,119550.0,119540.0,1.22159352]
[1753660245523,0.49651429,119550.0,119540.0,1.22163352]
[1753660246502,0.49651429,119550.0,119540.0,0.96939177]
[1753660250748,0.49651429,119550.0,119540.0,0.71715002]
[1753660250963,0.49651429,119550.0,119540.0,0.96939177]
[1753660260856,0.5297385,119550.0,119540.0,0.76940714]
[1753660260995,0.5297385,119550.0,119540.0,0.84692721]
[1753660261206,0.52973843,119550.0,119540.0,0.90529212]
[1753660261420,0.52973843,119550.0,119540.0,0.85529212]
[1753660261619,0.52973843,119550.0,119540.0,0.90529212]
[1753660261827,0.53810271,119550.0,119540.0,0.84692721]
[1753660262073,0.55500271,119550.0,119540.0,0.89692721]
[1753660262287,0.55500271,119550.0,119540.0,0.84692721]
[1753660262457,0.52973843,119550.0,119540.0,0.90529212]
[1753660262846,0.52137429,119550.0,119540.0,0.90529212]
[1753660263082,0.52137429,119550.0,119540.0,0.40080862]
[1753660263294,0.52137429,119550.0,119540.0,0.90529212]
[1753660263929,0.52137429,119550.0,119540.0,0.92881212]
[1753660264136,0.52137429,119550.0,119540.0,0.93188212]
[1753660264762,0.49818429,119550.0,119540.0,0.93188212]
[1753660264962,0.49818429,119550.0,119540.0,0.93401212]
[1753660265645,0.49818429,119550.0,119540.0,1.03401212]
[1753660269004,0.49651429,119550.0,119540.0,1.03401212]
[1753660269615,0.49651429,119550.0,119540.0,1.06721212]
[1753660273974,0.49651429,119550.0,119540.0,0.56272862]
[1753660274192,0.49651429,119550.0,119540.0,1.06721212]
[1753660275954,0.49651429,119550.0,119540.0,0.56272862]
[1753660276178,0.49651429,119550.0,119540.0,1.06721212]
[1753660276624,0.49651429,119550.0,119540.0,1.05041212]
[1753660276831,0.49651429,119550.0,119540.0,1.03401212]
[1753660286518,0.49651429,119550.0,119540.0,0.52952862]
[1753660286723,0.49651429,119550.0,119540.0,1.03401212]
[1753660287544,0.49651429,119550.0,119540.0,1.06851212]
[1753660291263,0.49651429,119550.0,119540.0,0.56402862]
[1753660291500,0.49651429,119550.0,119540.0,1.03401212]
[1753660293318,0.49651429,119550.0,119540.0,0.52952862]
[1753660293542,0.49651429,119550.0,119540.0,1.06781212]
[1753660300225,0.49651429,119550.0,119540.0,0.56332862]
[1753660300435,0.49651429,119550.0,119540.0,1.06781212]
[1753660300641,0.49651429,119550.0,119540.0,0.56332862]
[1753660301052,0.49651429,119550.0,119540.0,1.06781212]
[1753660306615,0.49651429,119550.0,119540.0,0.56332862]
[1753660306816,0.49651429,119550.0,119540.0,1.06781212]
[1753660311402,0.49651429,119550.0,119540.0,0.56332862]
[1753660311605,0.49651429,119550.0,119540.0,1.06829212]
[1753660312857,0.49651429,119550.0,119540.0,1.06849212]
[1753660313297,0.49651429,119550.0,119540.0,0.56400862]
[1753660313530,0.49651429,119550.0,119540.0,1.06849212]
[1753660313752,0.49651429,119550.0,119540.0,0.94029212]
[1753660313980,0.49651429,119550.0,119540.0,1.32109387]
[1753660314202,0.32921327,119550.0,119540.0,1.33854289]
[1753660314893,0.32921327,119550.0,119540.0,1.33554289]
[1753660315100,0.32921327,119550.0,119540.0,1.33854289]
[1753660315312,0.32921327,119550.0,119540.0,1.33654289]
[1753660315744,0.32921327,119550.0,119540.0,1.33954289]
[1753660316188,0.32921327,119550.0,119540.0,1.34054289]
[1753660320673,0.32921327,119550.0,119540.0,1.34912553]
[1753660320892,0.32921327,119550.0,119540.0,1.34054289]
[1753660326552,0.32921327,119550.0,119540.0,0.58381764]
[1753660326770,0.32921327,119550.0,119540.0,1.34054289]
[1753660330848,0.32921327,119550.0,119540.0,0.58381764]
[1753660331056,0.32921327,119550.0,119540.0,1.34054289]
[1753660335197,0.32921327,119550.0,119540.0,0.58381764]
[1753660335408,0.32921327,119550.0,119540.0,1.34054289]
[1753660336236,0.32921327,119550.0,119540.0,0.58381764]
[1753660336673,0.32921327,119550.0,119540.0,1.34054289]
[1753660340170,0.32921327,119550.0,119540.0,0.58381764]
[1753660340407,0.32921327,119550.0,119540.0,1.34054289]
[1753660347553,0.32921327,119550.0,119540.0,0.58381764]
[1753660347757,0.32921327,119550.0,119540.0,1.08830114]
[1753660348280,0.32921327,119550.0,119540.0,0.58381764]
[1753660348623,0.32921327,119550.0,119540.0,1.34054289]
[1753660353011,0.32921327,119550.0,119540.0,0.58381764]
[1753660353243,0.32921327,119550.0,119540.0,1.34054289]
[1753660363657,0.32921327,119550.0,119540.0,0.58381764]
[1753660363880,0.32921327,119550.0,119540.0,1.34054289]
[1753660368894,0.32921327,119550.0,119540.0,0.58381764]
[1753660369097,0.32921327,119550.0,119540.0,1.34054289]
[1753660373616,0.32921327,119550.0,119540.0,1.30674289]
[1753660373833,0.32921327,119550.0,119540.0,0.50320862]
[1753660373834,0.39004327,119550.0,119540.0,0.50320862]
[1753660374084,0.39108327,119550.0,119540.0,0.75545037]
[1753660374534,0.39108327,119550.0,119540.0,1.00769212]
[1753660374751,0.39004327,119550.0,119540.0,1.00769212]
[1753660377397,0.39004327,119550.0,119540.0,0.50320862]
[1753660377604,0.39004327,119550.0,119540.0,1.00769212]
[1753660384537,0.39004327,119550.0,119540.0,0.50320862]
[1753660384762,0.39004327,119550.0,119540.0,1.00769212]
[1753660388390,0.36648327,119550.0,119540.0,1.03530212]
[1753660390800,0.36648327,119550.0,119540.0,1.03731212]
[1753660394181,0.34858327,119550.0,119540.0,1.03731212]
[1753660394745,0.32921327,119550.0,119540.0,1.03731212]
[1753660397686,0.32921327,119550.0,119540.0,0.53282862]
[1753660397899,0.32921327,119550.0,119540.0,1.03731212]
[1753660400461,0.32921327,119550.0,119540.0,0.53282862]
[1753660400675,0.32921327,119550.0,119540.0,1.03731212]
[1753660402879,0.34711327,119550.0,119540.0,0.53282862]
[1753660403132,0.34878327,119550.0,119540.0,1.03731212]
[1753660403563,0.36708327,119550.0,119540.0,1.03731212]
[1753660404056,0.72716232,119550.0,119540.0,0.48647873]
[1753660404282,1.08389067,119550.0,119540.0,0.47811368]
[1753660404490,0.84001334,119550.0,119540.0,0.4864788]
[1753660404919,0.83164892,119550.0,119540.0,0.4864788]
[1753660405134,0.84001334,119550.0,119540.0,0.4864788]
[1753660405489,0.84001334,119550.0,119540.0,0.46974842]
[1753660405718,1.78827008,119550.0,119540.0,0.33346302]
[1753660405950,3.00255466,119550.0,119540.0,0.15500001]
[1753660406179,2.60255466,119550.0,119540.0,0.15500001]
[1753660406617,2.60255466,119550.0,119540.0,0.15400001]
[1753660406835,2.60355466,119550.0,119540.0,0.15400001]
[1753660407059,3.00355466,119550.0,119540.0,0.13696879]
[1753660407511,2.47587466,119550.0,119540.0,0.18696879]
[1753660407729,2.35143291,119550.0,119540.0,0.3542768]
[1753660407950,2.60367466,119550.0,119540.0,0.3502768]
[1753660408153,2.60367466,119550.0,119540.0,0.3512768]
[1753660408506,2.35143291,119550.0,119540.0,0.3512768]
[1753660408855,2.60367466,119550.0,119540.0,0.18396879]
[1753660409042,3.00367466,119550.0,119540.0,0.18396879]
[1753660409241,2.99531003,119550.0,119540.0,0.18396879]
[1753660411733,2.74306828,119550.0,119540.0,0.3512768]
[1753660411934,2.99531003,119550.0,119540.0,0.3512768]
[1753660412168,2.74202828,119550.0,119540.0,0.3512768]
[1753660412360,2.99427003,119550.0,119540.0,0.3512768]
[1753660413937,0.92052057,119550.0,119540.0,0.87453075]
[1753660414174,0.88265057,119550.0,119540.0,0.90933566]
[1753660414389,0.89937885,119550.0,119540.0,0.90933566]
[1753660414589,0.88265057,119550.0,119540.0,0.90933566]
[1753660415186,0.88265057,119550.0,119540.0,0.94523566]
[1753660417059,0.75469057,119550.0,119540.0,0.94523566]
[1753660420604,0.75469057,119550.0,119540.0,1.07311566]
[1753660421265,0.77141892,119550.0,119540.0,1.05551566]
[1753660421489,0.77141892,119550.0,119540.0,0.78497391]
[1753660422173,0.77978327,119550.0,119540.0,0.78497391]
[1753660422392,0.90766327,119550.0,119540.0,0.53273223]
[1753660422628,1.39474359,119550.0,119540.0,0.48752206]
[1753660422860,1.39474359,119550.0,119540.0,0.36800725]
[1753660423074,1.14250184,119550.0,119540.0,0.36800725]
[1753660423289,0.85569253,119550.0,119540.0,0.36800725]
[1753660423497,0.75469057,119550.0,119540.0,1.04570078]
[1753660423715,0.88273057,119550.0,119540.0,1.08020078]
[1753660423931,0.75469057,119550.0,119540.0,1.08020078]
[1753660427394,0.33021327,119550.0,119540.0,0.95220078]
[1753660427609,0.33021327,119550.0,119540.0,1.08032078]
[1753660428242,0.32921327,119550.0,119540.0,1.08032078]
[1753660429143,0.32921327,119550.0,119540.0,1.07932078]
[1753660429779,0.32921327,119550.0,119540.0,1.08132078]
[1753660439860,0.32921327,119550.0,119540.0,0.57683728]
[1753660440062,0.32921327,119550.0,119540.0,1.08132078]
[1753660440948,0.32921327,119550.0,119540.0,0.57683728]
[1753660441179,0.32921327,119550.0,119540.0,1.33356253]
[1753660448277,0.32921327,119550.0,119540.0,0.57683728]
[1753660448504,0.32921327,119550.0,119540.0,1.33356253]
[1753660450198,0.32921327,119550.0,119540.0,0.57683728]
[1753660450414,0.32921327,119550.0,119540.0,1.33356253]
[1753660451898,0.32921327,119550.0,119540.0,0.57683728]
[1753660452115,0.32921327,119550.0,119540.0,1.33356253]
[1753660455437,0.32921327,119550.0,119540.0,1.35101155]
[1753660456761,0.32921327,119550.0,119540.0,1.34901155]
[1753660456981,0.32921327,119550.0,119540.0,0.92831013]
[1753660457640,0.32921327,119550.0,119540.0,0.93031013]
[1753660458223,0.32921327,119550.0,119540.0,0.93131013]
[1753660458436,0.32921327,119550.0,119540.0,0.5952863]
[1753660458642,0.32921327,119550.0,119540.0,0.93131013]
[1753660472214,0.32921327,119550.0,119540.0,0.93127013]
[1753660475251,0.32921327,119550.0,119540.0,1.26729396]
[1753660475462,0.32921327,119550.0,119540.0,0.93127013]
[1753660477697,0.32921327,119550.0,119540.0,0.95575818]
[1753660478978,0.32921327,119550.0,119540.0,1.37580551]
[1753660492792,1e-08,119550.0,119540.0,2.38635397]
[1753660493010,1e-08,119550.0,119540.0,2.37611397]
[1753660493246,1e-08,119550.0,119540.0,2.40123597]
[1753660493894,1e-08,119550.0,119540.0,2.39823597]
[1753660494355,1e-08,119550.0,119540.0,2.40223597]
[1753660495195,1e-08,119550.0,119540.0,2.40423597]
[1753660498327,1e-08,119550.0,119540.0,2.67073597]
[1753660498833,1e-08,119550.0,119540.0,1.15859365]
[1753660499074,1e-08,119550.0,119540.0,2.67073597]
[1753660499514,1e-08,119550.0,119540.0,1.91466481]
[1753660500876,1e-08,119550.0,119540.0,2.67073597]
[1753660524399,1e-08,119570.0,119560.0,0.2785202]
[1753660524529,1e-08,119570.0,119560.0,2.25239282]
[1753660524744,1e-08,119570.0,119560.0,2.28026282]
[1753660524950,1e-08,119570.0,119560.0,2.30537982]
[1753660526219,1e-08,119570.0,119560.0,2.30737982]
[1753660527034,1e-08,119570.0,119560.0,2.30537982]
[1753660527263,1e-08,119570.0,119560.0,2.30637982]
[1753660527431,1e-08,119570.0,119560.0,2.31137982]
[1753660527667,1e-08,119570.0,119560.0,2.57687982]
[1753660528313,1e-08,119570.0,119560.0,2.57987982]
[1753660531710,0.02796709,119590.0,119580.0,0.192339]
[1753660531914,0.03353709,119590.0,119580.0,0.86173825]
[1753660532560,0.02963709,119590.0,119580.0,0.86173825]
[1753660532775,0.0301231,119590.0,119580.0,0.86173825]
[1753660533200,0.0301231,119590.0,119580.0,0.86373825]
[1753660533712,0.0301231,119590.0,119580.0,1.11576197]
[1753660534340,0.0301231,119590.0,119580.0,0.86373825]
[1753660534751,0.0483231,119590.0,119580.0,0.86373825]
[1753660535259,0.0483231,119590.0,119580.0,1.11576197]
[1753660535842,0.0483231,119590.0,119580.0,0.86373825]
[1753660536533,0.0483231,119590.0,119580.0,0.73601825]
[1753660536756,0.0532631,119590.0,119580.0,0.35969081]
[1753660536975,0.06998585,119590.0,119580.0,0.28297095]
[1753660537198,0.07834747,119590.0,119580.0,0.67107678]
[1753660537657,0.0783474,119590.0,119580.0,0.66807678]
[1753660537870,0.0783474,119590.0,119580.0,0.66907678]
[1753660538481,0.06998585,119590.0,119580.0,0.66907678]
[1753660539168,0.06998585,119590.0,119580.0,0.66807678]
[1753660539397,0.06998585,119590.0,119580.0,0.41605306]
[1753660539679,0.16282484,119590.0,119580.0,0.36605306]
[1753660539865,0.16282484,119590.0,119580.0,0.66807678]
[1753660540295,0.1711866,119590.0,119580.0,0.61807678]
[1753660540704,0.1711866,119590.0,119580.0,0.66807678]
[1753660541756,0.59044838,119590.0,119580.0,0.39096638]
[1753660541908,0.59044838,119590.0,119580.0,0.39096645]
[1753660541909,0.91372563,119590.0,119580.0,0.39096645]
[1753660542111,0.66170191,119590.0,119580.0,0.39096645]
[1753660542400,0.65334022,119590.0,119580.0,0.34096645]
[1753660542614,0.65334022,119590.0,119580.0,0.39096645]
[1753660543995,0.65334022,119590.0,119580.0,0.40769144]
[1753660544438,0.65334022,119590.0,119580.0,0.41605383]
[1753660544896,0.65334022,119590.0,119580.0,0.66807755]
[1753660545119,0.65334022,119590.0,119580.0,0.67643987]
[1753660545343,0.65334022,119590.0,119580.0,0.67643952]
[1753660546165,0.65334022,119590.0,119580.0,0.65971495]
[1753660546579,0.65334022,119590.0,119580.0,0.66807727]
[1753660547950,0.65334022,119590.0,119580.0,0.65971495]
[1753660548328,0.65334022,119590.0,119580.0,0.66807727]
[1753660550217,0.65334022,119590.0,119580.0,0.65971495]
[1753660550605,0.65334022,119590.0,119580.0,0.66807727]
[1753660550809,0.65334022,119590.0,119580.0,0.67643952]
[1753660551211,0.49446371,119590.0,119580.0,0.67643952]
[1753660551442,0.49342371,119590.0,119580.0,0.67643882]
[1753660551644,0.49788498,119590.0,119580.0,0.67643882]
[1753660551850,0.50624681,119590.0,119580.0,0.67643882]
[1753660552480,0.51460871,119590.0,119580.0,0.41605299]
[1753660552713,0.68184677,119590.0,119580.0,0.65971453]
[1753660552933,0.67348543,119590.0,119580.0,0.40769081]
[1753660553138,0.67348543,119590.0,119580.0,0.65135228]
[1753660553342,0.67348543,119590.0,119580.0,0.66807671]
[1753660553745,0.67348543,119590.0,119580.0,0.65971453]
[1753660554231,0.67348543,119590.0,119580.0,0.65135228]
[1753660554448,0.67348543,119590.0,119580.0,0.65971453]
[1753660555263,0.67348543,119590.0,119580.0,0.66807671]
[1753660555852,0.67348543,119590.0,119580.0,0.65971453]
[1753660556683,0.67348543,119590.0,119580.0,0.65135228]
[1753660557578,0.67348543,119590.0,119580.0,0.39932856]
[1753660557800,0.66512388,119590.0,119580.0,0.6513527]
[1753660558019,0.66170219,119590.0,119580.0,0.39096645]
[1753660558404,0.66170219,119590.0,119580.0,0.64299017]
[1753660558610,0.65676219,119590.0,119580.0,0.65135263]
[1753660558980,0.65676219,119590.0,119580.0,0.64299017]
[1753660559174,0.65676219,119590.0,119580.0,0.6513527]
[1753660559388,0.65676219,119590.0,119580.0,0.64299017]
[1753660559613,0.65676219,119590.0,119580.0,0.65135256]
[1753660560159,0.65676219,119590.0,119580.0,0.67610256]
[1753660560387,0.65676219,119590.0,119580.0,0.67610263]
[1753660560631,0.65676219,119590.0,119580.0,0.68446502]
[1753660561086,0.65676219,119590.0,119580.0,0.69282734]
[1753660561271,0.65676219,119590.0,119580.0,0.68446502]
[1753660561702,0.65676219,119590.0,119580.0,0.69282734]
[1753660561955,0.48952378,119590.0,119580.0,0.70118945]
[1753660562188,0.49788519,119590.0,119580.0,0.69282734]
[1753660562402,0.50624709,119590.0,119580.0,0.69282699]
[1753660562879,0.49788519,119590.0,119580.0,0.70118917]
[1753660563102,0.49788512,119590.0,119580.0,0.4523851]
[1753660563318,0.48952336,119590.0,119580.0,0.69604664]
[1753660563535,0.49788505,119590.0,119580.0,0.69604664]
[1753660563749,0.49788505,119590.0,119580.0,0.68768453]
[1753660563956,0.49788505,119590.0,119580.0,0.69604671]
[1753660564214,0.49788505,119590.0,119580.0,0.70440882]
[1753660564399,0.48952336,119590.0,119580.0,0.70440882]
[1753660564642,0.49788512,119590.0,119580.0,0.44402299]
[1753660564832,0.49788505,119590.0,119580.0,0.70440882]
[1753660564959,0.49788498,119590.0,119580.0,0.70440882]
[1753660565988,0.50624674,119590.0,119580.0,0.43566081]
[1753660566241,0.49788498,119590.0,119580.0,0.69604671]
[1753660566635,0.49788498,119590.0,119580.0,0.70440882]
[1753660566879,0.48952336,119590.0,119580.0,0.70440882]
[1753660567292,0.49788505,119590.0,119580.0,0.68768453]
[1753660567493,0.4336304,119590.0,119580.0,0.46603292]
[1753660567655,0.4336304,119590.0,119580.0,0.48603292]
[1753660567863,0.4336304,119590.0,119580.0,0.99008036]
[1753660568074,0.3491531,119590.0,119580.0,0.99008036]
[1753660568516,0.3491531,119590.0,119580.0,0.48603292]
[1753660569101,0.3491531,119590.0,119580.0,0.99008036]
[1753660570130,0.3491531,119590.0,119580.0,0.48603292]
[1753660570347,0.3491531,119590.0,119580.0,0.99008036]
[1753660572209,0.3491531,119590.0,119580.0,0.48603292]
[1753660572430,0.3491531,119590.0,119580.0,0.99008036]
[1753660573246,0.3491531,119590.0,119580.0,0.48603292]
[1753660573462,0.3491531,119590.0,119580.0,0.99008036]
[1753660575441,0.3491531,119590.0,119580.0,0.48603292]
[1753660575676,0.3491531,119590.0,119580.0,0.99008036]
[1753660576725,0.3491531,119590.0,119580.0,0.48603292]
[1753660576965,0.3491531,119590.0,119580.0,0.99008036]
[1753660579201,0.3491531,119590.0,119580.0,0.86236036]
[1753660579419,0.0091531,119590.0,119580.0,1.24342408]
[1753660580074,0.0091531,119590.0,119580.0,0.99140036]
[1753660580292,0.0091531,119590.0,119580.0,1.24342408]
[1753660583786,0.0091531,119590.0,119580.0,0.48735292]
[1753660583985,0.0091531,119590.0,119580.0,1.24342408]
[1753660585600,0.0091531,119590.0,119580.0,1.25193323]
[1753660585808,0.0091531,119590.0,119580.0,1.24342408]
[1753660588024,0.0091531,119590.0,119580.0,1.24442408]
[1753660590412,0.0091531,119590.0,119580.0,0.99240036]
[1753660593037,0.0091531,119590.0,119580.0,0.48835292]
[1753660593248,0.0108231,119590.0,119580.0,0.84336036]
[1753660593469,0.0108231,119590.0,119580.0,0.97021036]
[1753660593864,0.0108231,119590.0,119580.0,0.97227036]
[1753660594526,0.0108231,119590.0,119580.0,0.84331036]
[1753660594697,0.03858437,119590.0,119580.0,0.41833292]
[1753660594962,0.06964578,119590.0,119580.0,0.67035664]
[1753660595182,0.06964585,119590.0,119580.0,0.67035664]
[1753660595392,0.06574578,119590.0,119580.0,0.67035664]
[1753660595606,0.91442549,119590.0,119580.0,0.25588385]
[1753660595816,0.91442549,119590.0,119580.0,0.08863181]
[1753660596047,0.90606394,119590.0,119580.0,0.08863181]
[1753660596259,0.65404022,119590.0,119580.0,0.08763181]
[1753660596465,0.90606394,119590.0,119580.0,0.08763181]
[1753660596888,0.65404022,119590.0,119580.0,0.08763181]
[1753660599002,0.65404022,119590.0,119580.0,0.03763181]
[1753660599216,0.65404022,119590.0,119580.0,0.08763181]
[1753660599663,0.78300022,119590.0,119580.0,0.08763181]
[1753660599863,0.48814618,119590.0,119580.0,0.6309791]
[1753660600100,0.48814618,119590.0,119580.0,0.63934128]
[1753660600318,0.48814618,119590.0,119580.0,0.64770339]
[1753660600767,0.47978449,119590.0,119580.0,0.64770339]
[1753660601215,0.48814611,119590.0,119580.0,0.64770339]
[1753660601619,0.47142301,119590.0,119580.0,0.64770339]
[1753660601839,0.48814597,119590.0,119580.0,0.64770339]
[1753660602055,0.49650773,119590.0,119580.0,0.64770339]
[1753660602339,0.49650766,119590.0,119580.0,0.64770339]
[1753660602539,0.48814597,119590.0,119580.0,0.64770339]
[1753660602766,0.49650773,119590.0,119580.0,0.64770339]
[1753660602973,0.49650766,119590.0,119580.0,0.64770339]
[1753660603377,0.49650766,119590.0,119580.0,0.31165299]
[1753660603378,0.49650864,119590.0,119580.0,0.31165299]
[1753660603593,0.67368564,119590.0,119580.0,0.27160877]
[1753660603809,0.67368564,119590.0,119580.0,0.24233921]
[1753660604437,0.48972385,119590.0,119580.0,0.25070139]
[1753660604672,0.49808568,119590.0,119580.0,0.2823835]
[1753660605502,0.48972385,119590.0,119580.0,0.2823835]
[1753660605713,0.48972385,119590.0,119580.0,0.36134836]
[1753660605933,0.49808568,119590.0,119580.0,0.36134836]
[1753660607179,0.47142385,119590.0,119580.0,0.36442836]
[1753660607678,0.47978568,119590.0,119580.0,0.36442836]
[1753660608055,0.48814758,119590.0,119580.0,0.36442836]
[1753660608258,0.47142385,119590.0,119580.0,0.36442836]
[1753660608476,0.47978533,119590.0,119580.0,0.36442836]
[1753660608680,0.47978533,119590.0,119580.0,0.70047876]
[1753660608898,0.46306167,119590.0,119580.0,0.70047876]
[1753660609095,0.4547004,119590.0,119580.0,0.70047876]
[1753660609308,0.44366167,119590.0,119580.0,0.70253876]
[1753660609514,0.44366167,119590.0,119580.0,0.36648836]
[1753660609732,0.44366167,119590.0,119580.0,0.70253876]
[1753660610149,0.4353004,119590.0,119580.0,0.70253876]
[1753660612061,0.44366174,119590.0,119580.0,0.70253876]
[1753660613587,0.4353004,119590.0,119580.0,0.70253876]
[1753660614546,0.44366167,119590.0,119580.0,0.70253876]
[1753660614783,0.4336304,119590.0,119580.0,0.70253876]
[1753660616502,0.45035315,119590.0,119580.0,0.70253876]
[1753660616744,0.45035308,119590.0,119580.0,0.70253876]
[1753660616970,0.44199167,119590.0,119580.0,0.70253876]
[1753660617425,0.45035308,119590.0,119580.0,0.70253876]
[1753660617644,0.44199167,119590.0,119580.0,0.70253876]
[1753660619230,0.4336304,119590.0,119580.0,0.83157876]
[1753660619463,0.44199167,119590.0,119580.0,0.85067876]
[1753660619597,0.57103167,119590.0,119580.0,0.85067876]
[1753660620232,0.5626704,119590.0,119580.0,0.85067876]
[1753660620442,0.57095174,119590.0,119580.0,0.85067876]
[1753660620638,0.5625904,119590.0,119580.0,0.85067876]
[1753660621131,0.57095174,119590.0,119580.0,0.85067876]
[1753660621782,0.57931329,119590.0,119580.0,0.85067876]
[1753660621999,0.57931322,119590.0,119580.0,0.85067876]
[1753660622268,0.57095174,119590.0,119580.0,0.85067876]
[1753660622792,0.57931315,119590.0,119580.0,0.85067876]
[1753660622960,0.57931315,119590.0,119580.0,0.74750652]
[1753660623737,0.57087174,119590.0,119580.0,0.61846652]
[1753660624005,0.57923315,119590.0,119580.0,0.61846652]
[1753660624231,0.57087174,119590.0,119580.0,0.61846652]
[1753660625514,0.57923322,119590.0,119580.0,0.61846652]
[1753660625688,0.57923322,119590.0,119580.0,0.74734652]
[1753660625903,0.57087174,119590.0,119580.0,0.74734652]
[1753660626336,0.57923322,119590.0,119580.0,0.73898441]
[1753660626507,0.57087174,119590.0,119580.0,0.74734652]
[1753660626713,0.57923322,119590.0,119580.0,0.75728441]
[1753660626930,0.57087174,119590.0,119580.0,0.76564652]
[1753660627506,0.57087174,119590.0,119580.0,1.01762468]